[Event "47th GER-ch Blitz 2020"]
[Site "Magdeburg"]
[Date "2020.08.15"]
[Round "25.2"]
[White "Koch, Thomas"]
[Black "Frischmann, Rick"]
[Result "0-1"]
[ECO "D07"]
[WhiteElo "2461"]
[BlackElo "2347"]
[Annotator "ChessBase"]
[PlyCount "68"]
[EventDate "2020.07.28"]
[EventType "tourn"]
[EventCountry "GER"]
[SourceTitle "playchess.com"]
[Source "ChessBase"]
[SourceQuality "1"]
[TimeControl "180+2"]

1. d4 {[%emt 0:00:00]} d5 {[%emt 0:00:00]} 2. c4 {[%emt 0:00:00]} Nc6 {[%emt 0:00:00]} 3. Nf3 {[%emt 0:00:01]} Bg4 {[%emt 0:00:01]} 4. cxd5 {[%emt 0:00:03]} Bxf3 {[%emt 0:00:01]} 5. gxf3 {[%emt 0:00:01]} Qxd5 {[%emt 0:00:01]} 6. e3 {[%emt 0:00:01]} e5 {[%emt 0:00:01]} 7. Nc3 {[%emt 0:00:01]} Bb4 {[%emt 0:00:02]} 8. Bd2 {[%emt 0:00:06]} Bxc3 {[%emt 0:00:01]} 9. bxc3 {[%emt 0:00:01]} Qd6 {[%emt 0:00:01]} 10. Qb3 {[%emt 0:00:04]} O-O-O {[%emt 0:00:04]} 11. Rb1 {[%emt 0:00:01]} b6 {[%emt 0:00:01]} 12. Bg2 {[%emt 0:00:13]} Kb8 {[%emt 0:00:01]} 13. O-O {[%emt 0:00:05]} Nge7 {[%emt 0:00:09]} 14. f4 {[%emt 0:00:18]} exf4 {[%emt 0:00:14]} 15. Qb5 {[%emt 0:00:06]} g5 {[%emt 0:00:49]} 16. c4 {[%emt 0:00:06]} g4 {[%emt 0:00:15]} 17. c5 {[%emt 0:00:11]} Qg6 {[%emt 0:00:40]} 18. cxb6 {[%emt 0:00:03]} cxb6 {[%emt 0:00:05]} 19. exf4 {[%emt 0:00:29]} Nxd4 {[%emt 0:00:03]} 20. Qe5+ {[%emt 0:00:10]} Qd6 {[%emt 0:00:01]} 21. Bb4 {[%emt 0:00:18]} Qxe5 {[%emt 0:00:09]} 22. fxe5 {[%emt 0:00:01]} Nc8 {[%emt 0:00:11]} 23. a4 {[%emt 0:00:53]} Nf3+ {[%emt 0:00:21]} 24. Kh1 {[%emt 0:00:05]} Nxe5 {[%emt 0:00:03]} 25. a5 {[%emt 0:00:06]} Rhe8 {[%emt 0:00:04]} 26. axb6 {[%emt 0:00:02]} axb6 {[%emt 0:00:00]} 27. Ra1 {[%emt 0:00:04]} Nf3 {[%emt 0:00:01]} 28. Ra3 {[%emt 0:00:05]} Re4 {[%emt 0:00:02]} 29. Bc3 {[%emt 0:00:08]} Rd5 {[%emt 0:00:06]} 30. Rfa1 {[%emt 0:00:07]} Rh5 {[%emt 0:00:01]} 31. h3 {[%emt 0:00:03]} Re2 {[%emt 0:00:05]} 32. Ra8+ {[%emt 0:00:06]} Kc7 {[%emt 0:00:00]} 33. Rc1 {[%emt 0:00:01]} Kb7 {[%emt 0:00:05]} 34. Ra3 {[%emt 0:00:05]} Rxf2 0-1

[Event "47th GER-ch Blitz 2020"]
[Site "Magdeburg"]
[Date "2020.08.15"]
[Round "25.4"]
[White "Reichmann, Hendrik"]
[Black "Zelbel, Patrick"]
[Result "1/2-1/2"]
[ECO "D00"]
[WhiteElo "2348"]
[BlackElo "2448"]
[Annotator "ChessBase"]
[PlyCount "65"]
[EventDate "2020.07.28"]
[EventType "tourn"]
[EventCountry "GER"]
[SourceTitle "playchess.com"]
[Source "ChessBase"]
[SourceQuality "1"]
[TimeControl "180+2"]

1. d4 {[%emt 0:00:00]} d5 {[%emt 0:00:00]} 2. Bf4 {[%emt 0:00:01]} c5 {[%emt 0:00:00]} 3. e3 {[%emt 0:00:02]} cxd4 {[%emt 0:00:00]} 4. exd4 {[%emt 0:00:01]} Nc6 {[%emt 0:00:01]} 5. Nc3 {[%emt 0:00:01]} a6 {[%emt 0:00:09]} 6. Nce2 {[%emt 0:00:01]} Qb6 {[%emt 0:00:14]} 7. Rb1 {[%emt 0:00:03]} Bf5 {[%emt 0:00:26]} 8. Ng3 {[%emt 0:01:06]} Qxd4 {[%emt 0:00:39]} 9. Qxd4 {[%emt 0:00:25]} Nxd4 {[%emt 0:00:01]} 10. Nxf5 {[%emt 0:00:31]} Nxf5 {[%emt 0:00:01]} 11. Bd3 {[%emt 0:00:08]} g6 {[%emt 0:00:16]} 12. Ne2 {[%emt 0:00:04]} Bg7 {[%emt 0:00:02]} 13. O-O {[%emt 0:00:06]} e6 {[%emt 0:00:06]} 14. c4 {[%emt 0:00:03]} Nge7 {[%emt 0:00:06]} 15. Nc3 {[%emt 0:00:07]} dxc4 {[%emt 0:00:05]} 16. Bxc4 {[%emt 0:00:01]} Rc8 {[%emt 0:00:03]} 17. Be2 {[%emt 0:00:03]} Nd4 {[%emt 0:00:05]} 18. Bd3 {[%emt 0:00:04]} O-O {[%emt 0:00:06]} 19. Ne4 {[%emt 0:00:05]} e5 {[%emt 0:00:25]} 20. Bg5 {[%emt 0:00:07]} f6 {[%emt 0:00:01]} 21. Be3 {[%emt 0:00:01]} Rfd8 {[%emt 0:00:05]} 22. Rfd1 {[%emt 0:00:05]} Nef5 {[%emt 0:00:03]} 23. b4 {[%emt 0:00:10]} Nxe3 {[%emt 0:00:06]} 24. fxe3 {[%emt 0:00:03]} Nf5 {[%emt 0:00:02]} 25. Bc4+ {[%emt 0:00:09]} Kh8 {[%emt 0:00:13]} 26. Be6 {[%emt 0:00:09]} Rb8 {[%emt 0:00:13]} 27. Bxf5 {[%emt 0:00:01]} gxf5 {[%emt 0:00:00]} 28. Nd6 {[%emt 0:00:01]} Kg8 {[%emt 0:00:09]} 29. Nxf5 {[%emt 0:00:01]} Bf8 {[%emt 0:00:01]} 30. a3 {[%emt 0:00:01]} Kf7 {[%emt 0:00:05]} 31. Kf2 {[%emt 0:00:01]} Rbc8 {[%emt 0:00:05]} 32. Rbc1 {[%emt 0:00:04]} Ke6 {[%emt 0:00:05]} 33. e4 {[%emt 0:00:01]} 1/2-1/2

[Event "47th GER-ch Blitz 2020"]
[Site "Magdeburg"]
[Date "2020.08.15"]
[Round "25.5"]
[White "Svane, Frederik"]
[Black "Wichmann, Cliff"]
[Result "1-0"]
[ECO "C05"]
[WhiteElo "2421"]
[BlackElo "2305"]
[Annotator "ChessBase"]
[PlyCount "113"]
[EventDate "2020.07.28"]
[EventType "tourn"]
[EventCountry "GER"]
[SourceTitle "playchess.com"]
[Source "ChessBase"]
[SourceQuality "1"]
[TimeControl "180+2"]

1. e4 {[%emt 0:00:00]} e6 {[%emt 0:00:00]} 2. d4 {[%emt 0:00:00]} d5 {[%emt 0:00:00]} 3. Nd2 {[%emt 0:00:00]} Nf6 {[%emt 0:00:00]} 4. e5 {[%emt 0:00:01]} Nfd7 {[%emt 0:00:01]} 5. f4 {[%emt 0:00:01]} c5 {[%emt 0:00:01]} 6. c3 {[%emt 0:00:00]} Nc6 {[%emt 0:00:00]} 7. Ndf3 {[%emt 0:00:01]} Qb6 {[%emt 0:00:02]} 8. g3 {[%emt 0:00:01]} Be7 {[%emt 0:00:03]} 9. Kf2 {[%emt 0:00:03]} O-O {[%emt 0:00:03]} 10. Kg2 {[%emt 0:00:00]} cxd4 {[%emt 0:00:08]} 11. cxd4 {[%emt 0:00:01]} f6 {[%emt 0:00:03]} 12. Bd3 {[%emt 0:00:02]} Kh8 {[%emt 0:00:11]} 13. Ne2 {[%emt 0:00:06]} Qd8 {[%emt 0:00:11]} 14. h4 {[%emt 0:00:03]} b6 {[%emt 0:00:09]} 15. Bxh7 {[%emt 0:00:30]} Ncxe5 {[%emt 0:00:16]} 16. dxe5 {[%emt 0:00:20]} Kxh7 {[%emt 0:00:02]} 17. Ng5+ {[%emt 0:00:01]} fxg5 {[%emt 0:00:12]} 18. hxg5+ {[%emt 0:00:01]} Kg8 {[%emt 0:00:01]} 19. g6 {[%emt 0:00:05]} d4 {[%emt 0:00:47]} 20. Nxd4 {[%emt 0:01:59]} Bb7+ {[%emt 0:00:01]} 21. Kf1 {[%emt 0:00:13]} Bg5 {[%emt 0:00:33]} 22. Nxe6 {[%emt 0:00:09]} Qe8 {[%emt 0:00:15]} 23. Nxg5 {[%emt 0:00:04]} Qxg6 {[%emt 0:00:01]} 24. Qb3+ {[%emt 0:00:02]} Rf7 {[%emt 0:00:03]} 25. Nxf7 {[%emt 0:00:02]} Bxh1 {[%emt 0:00:04]} 26. Ng5+ {[%emt 0:00:01]} Kh8 {[%emt 0:00:12]} 27. Qe6 {[%emt 0:00:04]} Qxe6 {[%emt 0:00:17]} 28. Nxe6 {[%emt 0:00:01]} Rc8 {[%emt 0:00:03]} 29. Bd2 {[%emt 0:00:01]} Rc2 {[%emt 0:00:02]} 30. Ke2 {[%emt 0:00:01]} Bd5 {[%emt 0:00:02]} 31. Nd4 {[%emt 0:00:01]} Rxb2 {[%emt 0:00:02]} 32. e6 {[%emt 0:00:03]} Nf6 {[%emt 0:00:02]} 33. Rc1 {[%emt 0:00:04]} Ne4 {[%emt 0:00:06]} 34. Rc8+ {[%emt 0:00:00]} Kh7 {[%emt 0:00:01]} 35. e7 {[%emt 0:00:02]} Bf7 {[%emt 0:00:01]} 36. e8=Q {[%emt 0:00:03]} Bxe8 37. Rxe8 {[%emt 0:00:01]} Nxd2 {[%emt 0:00:04]} 38. Kd3 {[%emt 0:00:02]} Nf1 {[%emt 0:00:03]} 39. Nf5 {[%emt 0:00:03]} Rg2 {[%emt 0:00:04]} 40. Re7 {[%emt 0:00:01]} Rxa2 {[%emt 0:00:04]} 41. Rxg7+ {[%emt 0:00:01]} Kh8 {[%emt 0:00:00]} 42. Rc7 {[%emt 0:00:02]} Nxg3 {[%emt 0:00:02]} 43. Nxg3 Ra3+ 44. Ke4 {[%emt 0:00:03]} Rxg3 {[%emt 0:00:02]} 45. Rxa7 {[%emt 0:00:01]} Rb3 {[%emt 0:00:03]} 46. Kf5 {[%emt 0:00:01]} Kg8 {[%emt 0:00:02]} 47. Kg6 {[%emt 0:00:01]} Rg3+ {[%emt 0:00:01]} 48. Kf6 {[%emt 0:00:01]} Rh3 {[%emt 0:00:02]} 49. Ra8+ {[%emt 0:00:03]} Kh7 {[%emt 0:00:01]} 50. f5 {[%emt 0:00:01]} Rh6+ {[%emt 0:00:02]} 51. Ke7 {[%emt 0:00:01]} Kg7 {[%emt 0:00:03]} 52. Ra1 {[%emt 0:00:01]} Rh2 {[%emt 0:00:05]} 53. Rg1+ {[%emt 0:00:01]} Kh6 {[%emt 0:00:02]} 54. f6 {[%emt 0:00:01]} Re2+ {[%emt 0:00:02]} 55. Kf8 {[%emt 0:00:02]} Rf2 {[%emt 0:00:03]} 56. f7 {[%emt 0:00:01]} b5 {[%emt 0:00:00]} 57. Kg8 {[%emt 0:00:05]} 1-0

[Event "47th GER-ch Blitz 2020"]
[Site "Magdeburg"]
[Date "2020.08.15"]
[Round "25.6"]
[White "Schneider, Ilja"]
[Black "Barzen, Pascal"]
[Result "1-0"]
[ECO "A45"]
[WhiteElo "2479"]
[BlackElo "2321"]
[Annotator "ChessBase"]
[PlyCount "69"]
[EventDate "2020.07.28"]
[EventType "tourn"]
[EventCountry "GER"]
[SourceTitle "playchess.com"]
[Source "ChessBase"]
[SourceQuality "1"]
[TimeControl "180+2"]

1. d4 {[%emt 0:00:00]} Nf6 {[%emt 0:00:00]} 2. Bg5 {[%emt 0:00:01]} d5 {[%emt 0:00:00]} 3. e3 {[%emt 0:00:01]} c6 {[%emt 0:00:03]} 4. Bd3 {[%emt 0:00:03]} Nbd7 {[%emt 0:00:08]} 5. Nf3 {[%emt 0:00:01]} Qc7 {[%emt 0:00:04]} 6. Nbd2 {[%emt 0:00:10]} e6 {[%emt 0:00:05]} 7. O-O {[%emt 0:00:05]} Bd6 {[%emt 0:00:03]} 8. c4 {[%emt 0:00:02]} h6 {[%emt 0:00:03]} 9. Bh4 {[%emt 0:00:03]} g5 {[%emt 0:00:08]} 10. Bg3 {[%emt 0:00:01]} Bxg3 11. hxg3 {[%emt 0:00:09]} b6 {[%emt 0:00:46]} 12. Rc1 {[%emt 0:00:05]} Qd6 {[%emt 0:00:08]} 13. cxd5 {[%emt 0:00:16]} cxd5 {[%emt 0:00:02]} 14. e4 {[%emt 0:00:00]} dxe4 {[%emt 0:00:22]} 15. Nxe4 {[%emt 0:00:02]} Qd5 {[%emt 0:00:12]} 16. Nc3 {[%emt 0:00:34]} Qa5 {[%emt 0:00:08]} 17. Nb5 {[%emt 0:00:32]} O-O {[%emt 0:00:05]} 18. a3 {[%emt 0:00:01]} Qa6 {[%emt 0:00:20]} 19. Nc7 {[%emt 0:00:02]} Qb7 {[%emt 0:00:01]} 20. Nxa8 {[%emt 0:00:01]} Qxa8 {[%emt 0:00:00]} 21. Ne5 {[%emt 0:00:07]} Qb8 {[%emt 0:00:25]} 22. Nc6 {[%emt 0:00:17]} Qa8 {[%emt 0:00:21]} 23. Ne7+ {[%emt 0:00:13]} Kg7 {[%emt 0:00:00]} 24. Nxc8 Rxc8 {[%emt 0:00:01]} 25. Qf3 {[%emt 0:00:20]} Nd5 {[%emt 0:00:05]} 26. Be4 {[%emt 0:00:02]} N7f6 {[%emt 0:00:03]} 27. Bxd5 {[%emt 0:00:02]} Nxd5 {[%emt 0:00:01]} 28. Qd3 {[%emt 0:00:07]} Qb7 {[%emt 0:00:02]} 29. Rc2 {[%emt 0:00:03]} Rd8 {[%emt 0:00:11]} 30. Rfc1 Rd7 31. Qe4 {[%emt 0:00:09]} Qa6 {[%emt 0:00:06]} 32. Qe5+ {[%emt 0:00:01]} Nf6 {[%emt 0:00:03]} 33. Rc7 {[%emt 0:00:03]} Qa4 {[%emt 0:00:06]} 34. Rxd7 {[%emt 0:00:02]} Qxd7 {[%emt 0:00:01]} 35. Rc7 {[%emt 0:00:05]} 1-0

[Event "47th GER-ch Blitz 2020"]
[Site "Magdeburg"]
[Date "2020.08.15"]
[Round "25.7"]
[White "Siebarth, Raiko"]
[Black "Baskin, Robert"]
[Result "0-1"]
[ECO "A10"]
[WhiteElo "2333"]
[BlackElo "2390"]
[Annotator "ChessBase"]
[PlyCount "170"]
[EventDate "2020.07.28"]
[EventType "tourn"]
[EventCountry "GER"]
[SourceTitle "playchess.com"]
[Source "ChessBase"]
[SourceQuality "1"]
[TimeControl "180+2"]

1. c4 {[%emt 0:00:00]} f5 {[%emt 0:00:00]} 2. Nc3 {[%emt 0:00:01]} Nf6 {[%emt 0:00:01]} 3. g3 {[%emt 0:00:01]} g6 {[%emt 0:00:01]} 4. Bg2 {[%emt 0:00:00]} Bg7 {[%emt 0:00:01]} 5. e3 {[%emt 0:00:01]} O-O {[%emt 0:00:02]} 6. Nge2 {[%emt 0:00:00]} d6 {[%emt 0:00:01]} 7. d4 {[%emt 0:00:03]} c6 {[%emt 0:00:03]} 8. O-O {[%emt 0:00:02]} Na6 {[%emt 0:00:02]} 9. b3 {[%emt 0:00:01]} Qc7 {[%emt 0:00:02]} 10. Ba3 {[%emt 0:00:03]} Bd7 {[%emt 0:00:03]} 11. Qd2 {[%emt 0:00:04]} Rad8 {[%emt 0:00:05]} 12. Rad1 {[%emt 0:00:00]} Qa5 {[%emt 0:00:08]} 13. Qb2 {[%emt 0:00:17]} Nb4 {[%emt 0:00:08]} 14. Nc1 {[%emt 0:00:06]} b5 {[%emt 0:00:14]} 15. Bxb4 {[%emt 0:00:17]} Qxb4 {[%emt 0:00:01]} 16. Nd3 {[%emt 0:00:01]} Qa5 17. c5 {[%emt 0:00:19]} b4 {[%emt 0:00:23]} 18. Na4 Qb5 {[%emt 0:00:02]} 19. Qd2 {[%emt 0:00:15]} Rb8 {[%emt 0:00:02]} 20. cxd6 {[%emt 0:00:02]} exd6 {[%emt 0:00:01]} 21. Rc1 {[%emt 0:00:01]} Ne4 {[%emt 0:00:14]} 22. Qc2 {[%emt 0:00:02]} a5 {[%emt 0:00:13]} 23. Rfe1 {[%emt 0:00:05]} Rbc8 {[%emt 0:00:10]} 24. Bf1 {[%emt 0:00:07]} Qb7 {[%emt 0:00:08]} 25. Ndb2 {[%emt 0:00:02]} Be6 {[%emt 0:00:07]} 26. Nc4 {[%emt 0:00:08]} Qa7 {[%emt 0:00:05]} 27. f3 {[%emt 0:00:05]} Ng5 {[%emt 0:00:01]} 28. Bg2 {[%emt 0:00:18]} Bd5 {[%emt 0:00:01]} 29. Qf2 {[%emt 0:00:02]} Rcd8 {[%emt 0:00:11]} 30. Ncb6 {[%emt 0:00:08]} Bxf3 {[%emt 0:00:03]} 31. h4 {[%emt 0:00:07]} Bxg2 {[%emt 0:00:05]} 32. Qxg2 {[%emt 0:00:01]} Ne4 {[%emt 0:00:01]} 33. Rxc6 {[%emt 0:00:00]} Qe7 {[%emt 0:00:08]} 34. Nd5 {[%emt 0:00:05]} Qf7 {[%emt 0:00:03]} 35. Nf4 {[%emt 0:00:03]} Rfe8 {[%emt 0:00:01]} 36. Rec1 {[%emt 0:00:04]} Nf6 {[%emt 0:00:06]} 37. Rc7 {[%emt 0:00:05]} Rd7 {[%emt 0:00:01]} 38. Rxd7 {[%emt 0:00:04]} Qxd7 {[%emt 0:00:04]} 39. Nb6 {[%emt 0:00:01]} Qf7 {[%emt 0:00:13]} 40. Nc4 {[%emt 0:00:06]} Ne4 {[%emt 0:00:08]} 41. Nxa5 {[%emt 0:00:06]} Qa7 {[%emt 0:00:05]} 42. Nc4 {[%emt 0:00:03]} Bh6 {[%emt 0:00:22]} 43. Rc2 {[%emt 0:00:03]} Kg7 {[%emt 0:00:03]} 44. Kh2 {[%emt 0:00:06]} Rc8 {[%emt 0:00:07]} 45. g4 {[%emt 0:00:17]} Bxf4+ {[%emt 0:00:01]} 46. exf4 {[%emt 0:00:00]} Qc7 {[%emt 0:00:02]} 47. Ne3 {[%emt 0:00:08]} Qd8 {[%emt 0:00:06]} 48. Rxc8 {[%emt 0:00:04]} Qxc8 {[%emt 0:00:02]} 49. gxf5 {[%emt 0:00:01]} Qc3 {[%emt 0:00:03]} 50. Qxe4 {[%emt 0:00:02]} Qd2+ {[%emt 0:00:03]} 51. Ng2 {[%emt 0:00:01]} gxf5 {[%emt 0:00:04]} 52. Qe7+ {[%emt 0:00:02]} Kg8 {[%emt 0:00:02]} 53. Qe6+ {[%emt 0:00:01]} Kg7 {[%emt 0:00:01]} 54. Qxd6 Qxa2 {[%emt 0:00:02]} 55. Qxb4 {[%emt 0:00:03]} Kh6 {[%emt 0:00:02]} 56. Qd6+ {[%emt 0:00:00]} Kh5 {[%emt 0:00:02]} 57. Qe6 {[%emt 0:00:12]} Kg4 {[%emt 0:00:02]} 58. Qe3 {[%emt 0:00:01]} h6 {[%emt 0:00:05]} 59. Qg3+ {[%emt 0:00:02]} Kh5 {[%emt 0:00:01]} 60. Qf3+ {[%emt 0:00:01]} Kg6 {[%emt 0:00:00]} 61. h5+ {[%emt 0:00:01]} Kf6 {[%emt 0:00:02]} 62. Qc6+ {[%emt 0:00:00]} Kf7 {[%emt 0:00:02]} 63. Qd7+ {[%emt 0:00:01]} Kg8 {[%emt 0:00:01]} 64. Qxf5 {[%emt 0:00:01]} Qxb3 {[%emt 0:00:01]} 65. Qg6+ {[%emt 0:00:01]} Kf8 {[%emt 0:00:02]} 66. Qxh6+ {[%emt 0:00:01]} Kg8 {[%emt 0:00:00]} 67. Qg6+ Kh8 68. Qf6+ {[%emt 0:00:03]} Kh7 {[%emt 0:00:02]} 69. Qf7+ {[%emt 0:00:02]} Qxf7 {[%emt 0:00:00]} 70. Kg3 {[%emt 0:00:02]} Qxh5 {[%emt 0:00:02]} 71. Ne3 {[%emt 0:00:02]} Qf7 {[%emt 0:00:02]} 72. Kf3 {[%emt 0:00:01]} Kg7 {[%emt 0:00:01]} 73. Ke4 {[%emt 0:00:00]} Qe6+ {[%emt 0:00:05]} 74. Kd3 {[%emt 0:00:01]} Kf6 {[%emt 0:00:02]} 75. f5 {[%emt 0:00:00]} Qa6+ {[%emt 0:00:02]} 76. Ke4 {[%emt 0:00:01]} Kg5 {[%emt 0:00:01]} 77. Kf3 {[%emt 0:00:04]} Qd3 {[%emt 0:00:01]} 78. d5 {[%emt 0:00:01]} Qd4 {[%emt 0:00:02]} 79. d6 {[%emt 0:00:03]} Qxd6 {[%emt 0:00:02]} 80. Ke4 {[%emt 0:00:01]} Qf4+ {[%emt 0:00:02]} 81. Kd3 {[%emt 0:00:00]} Qa4 {[%emt 0:00:02]} 82. Ke2 {[%emt 0:00:02]} Kf4 {[%emt 0:00:01]} 83. f6 {[%emt 0:00:01]} Qa2+ {[%emt 0:00:01]} 84. Kd3 {[%emt 0:00:01]} Qb3+ {[%emt 0:00:02]} 85. Kd4 {[%emt 0:00:01]} Qxe3+ {[%emt 0:00:00]} 0-1

[Event "47th GER-ch Blitz 2020"]
[Site "Magdeburg"]
[Date "2020.08.15"]
[Round "25.8"]
[White "Hess, Max"]
[Black "Ehmann, Thilo"]
[Result "1-0"]
[ECO "B20"]
[WhiteElo "2378"]
[BlackElo "2329"]
[Annotator "ChessBase"]
[PlyCount "64"]
[EventDate "2020.07.28"]
[EventType "tourn"]
[EventCountry "GER"]
[SourceTitle "playchess.com"]
[Source "ChessBase"]
[SourceQuality "1"]
[TimeControl "180+2"]

1. e4 {[%emt 0:00:00]} c5 {[%emt 0:00:01]} 2. d3 {[%emt 0:00:00]} Nc6 {[%emt 0:00:03]} 3. g3 {[%emt 0:00:01]} g6 {[%emt 0:00:01]} 4. Bg2 {[%emt 0:00:01]} Bg7 {[%emt 0:00:01]} 5. f4 {[%emt 0:00:02]} d6 {[%emt 0:00:01]} 6. Nf3 {[%emt 0:00:01]} e6 {[%emt 0:00:00]} 7. O-O {[%emt 0:00:02]} Nge7 {[%emt 0:00:01]} 8. c3 {[%emt 0:00:01]} O-O {[%emt 0:00:04]} 9. Be3 {[%emt 0:00:06]} b5 {[%emt 0:00:03]} 10. d4 {[%emt 0:00:10]} cxd4 {[%emt 0:00:04]} 11. cxd4 {[%emt 0:00:01]} d5 {[%emt 0:00:01]} 12. e5 {[%emt 0:00:01]} b4 {[%emt 0:00:26]} 13. Nbd2 {[%emt 0:00:23]} Ba6 {[%emt 0:00:11]} 14. Re1 {[%emt 0:00:02]} Na5 {[%emt 0:00:09]} 15. Nb3 {[%emt 0:00:31]} Nc4 {[%emt 0:00:21]} 16. Bc1 {[%emt 0:00:01]} Bb5 {[%emt 0:00:20]} 17. Nc5 {[%emt 0:00:06]} Nb6 {[%emt 0:00:05]} 18. g4 {[%emt 0:00:12]} Nd7 {[%emt 0:00:06]} 19. Nb7 {[%emt 0:00:04]} Qb6 {[%emt 0:00:08]} 20. Nd6 {[%emt 0:00:03]} Ba6 {[%emt 0:00:09]} 21. Be3 {[%emt 0:00:01]} Nc8 {[%emt 0:00:04]} 22. Nxc8 {[%emt 0:00:04]} Raxc8 {[%emt 0:00:01]} 23. f5 {[%emt 0:00:01]} exf5 {[%emt 0:00:14]} 24. gxf5 {[%emt 0:00:01]} gxf5 {[%emt 0:00:01]} 25. Nh4 {[%emt 0:00:02]} f4 {[%emt 0:00:24]} 26. Bf2 {[%emt 0:00:31]} Qe6 {[%emt 0:00:06]} 27. Qh5 {[%emt 0:00:02]} Bd3 {[%emt 0:00:09]} 28. Bh3 {[%emt 0:00:03]} Qxh3 {[%emt 0:00:07]} 29. Qg5 {[%emt 0:00:17]} Kh8 {[%emt 0:00:13]} 30. e6 {[%emt 0:00:10]} fxe6 {[%emt 0:00:05]} 31. Qh5 {[%emt 0:00:07]} Kg8 {[%emt 0:00:19]} 32. Qg5 {[%emt 0:00:03]} h6 1-0

[Event "47th GER-ch Blitz 2020"]
[Site "Magdeburg"]
[Date "2020.08.15"]
[Round "25.9"]
[White "Kopylov, Michael"]
[Black "Braun, Georg"]
[Result "1-0"]
[ECO "A57"]
[WhiteElo "2407"]
[BlackElo "2360"]
[Annotator "ChessBase"]
[PlyCount "95"]
[EventDate "2020.07.28"]
[EventType "tourn"]
[EventCountry "GER"]
[SourceTitle "playchess.com"]
[Source "ChessBase"]
[SourceQuality "1"]
[TimeControl "180+2"]

1. d4 {[%emt 0:00:00]} Nf6 {[%emt 0:00:00]} 2. c4 {[%emt 0:00:00]} c5 {[%emt 0:00:00]} 3. d5 {[%emt 0:00:01]} b5 {[%emt 0:00:01]} 4. Nf3 {[%emt 0:00:02]} bxc4 {[%emt 0:00:03]} 5. Nc3 {[%emt 0:00:01]} d6 {[%emt 0:00:01]} 6. e4 {[%emt 0:00:02]} g6 {[%emt 0:00:01]} 7. Bxc4 {[%emt 0:00:03]} Bg7 {[%emt 0:00:01]} 8. O-O {[%emt 0:00:02]} O-O {[%emt 0:00:01]} 9. h3 {[%emt 0:00:03]} Nfd7 {[%emt 0:00:03]} 10. Bf4 {[%emt 0:00:04]} Nb6 {[%emt 0:00:02]} 11. Bb3 {[%emt 0:00:13]} Ba6 {[%emt 0:00:02]} 12. Re1 {[%emt 0:00:01]} N8d7 {[%emt 0:00:04]} 13. e5 {[%emt 0:00:05]} dxe5 {[%emt 0:00:29]} 14. Nxe5 {[%emt 0:00:02]} Nxe5 {[%emt 0:00:02]} 15. Bxe5 {[%emt 0:00:03]} c4 {[%emt 0:00:28]} 16. Ba4 {[%emt 0:00:12]} Bb7 {[%emt 0:00:13]} 17. Bc6 {[%emt 0:00:30]} Bxc6 {[%emt 0:00:10]} 18. Bxg7 {[%emt 0:00:20]} Kxg7 {[%emt 0:00:04]} 19. dxc6 {[%emt 0:00:01]} e6 {[%emt 0:00:09]} 20. a4 {[%emt 0:00:38]} Qg5 {[%emt 0:00:57]} 21. Qd4+ {[%emt 0:00:17]} Qf6 {[%emt 0:00:05]} 22. Qc5 {[%emt 0:00:03]} Qf5 {[%emt 0:00:30]} 23. Re5 {[%emt 0:00:14]} Qc2 {[%emt 0:00:01]} 24. Qd4 {[%emt 0:00:10]} Kg8 {[%emt 0:00:02]} 25. Ne4 {[%emt 0:00:01]} Rad8 {[%emt 0:00:07]} 26. Qc3 {[%emt 0:00:16]} Qxc3 {[%emt 0:00:02]} 27. bxc3 {[%emt 0:00:01]} Rd3 {[%emt 0:00:03]} 28. Rc5 {[%emt 0:00:04]} Rc8 {[%emt 0:00:02]} 29. a5 {[%emt 0:00:04]} Nd7 {[%emt 0:00:04]} 30. Rxc4 {[%emt 0:00:02]} Ne5 31. Rc5 Nxc6 {[%emt 0:00:05]} 32. Rb1 {[%emt 0:00:06]} Kg7 {[%emt 0:00:02]} 33. Rb7 {[%emt 0:00:04]} Nd8 {[%emt 0:00:05]} 34. Rxc8 {[%emt 0:00:01]} Nxb7 {[%emt 0:00:01]} 35. a6 {[%emt 0:00:01]} Na5 {[%emt 0:00:02]} 36. Rc7 {[%emt 0:00:02]} Rd1+ {[%emt 0:00:05]} 37. Kh2 {[%emt 0:00:01]} Re1 {[%emt 0:00:00]} 38. Ng5 {[%emt 0:00:06]} h6 {[%emt 0:00:03]} 39. Nxf7 {[%emt 0:00:03]} Kf6 {[%emt 0:00:01]} 40. Nd8 {[%emt 0:00:04]} Rc1 {[%emt 0:00:02]} 41. Rxa7 {[%emt 0:00:05]} Rxc3 {[%emt 0:00:02]} 42. Rf7+ {[%emt 0:00:00]} Ke5 {[%emt 0:00:02]} 43. a7 {[%emt 0:00:02]} Rc8 {[%emt 0:00:01]} 44. Nb7 {[%emt 0:00:05]} Nc6 {[%emt 0:00:02]} 45. Nc5 {[%emt 0:00:04]} Ra8 {[%emt 0:00:02]} 46. Nd7+ {[%emt 0:00:01]} Kd6 {[%emt 0:00:01]} 47. Nb6 Rxa7 {[%emt 0:00:01]} 48. Nc8+ {[%emt 0:00:02]} 1-0

[Event "47th GER-ch Blitz 2020"]
[Site "Magdeburg"]
[Date "2020.08.15"]
[Round "25.10"]
[White "Berger, Steve"]
[Black "Siebrecht, Sebastian"]
[Result "1-0"]
[ECO "B06"]
[WhiteElo "2408"]
[BlackElo "2429"]
[Annotator "ChessBase"]
[PlyCount "83"]
[EventDate "2020.07.28"]
[EventType "tourn"]
[EventCountry "GER"]
[SourceTitle "playchess.com"]
[Source "ChessBase"]
[SourceQuality "1"]
[TimeControl "180+2"]

1. e4 {[%emt 0:00:00]} g6 {[%emt 0:00:00]} 2. d4 {[%emt 0:00:00]} Bg7 {[%emt 0:00:00]} 3. Nc3 {[%emt 0:00:01]} d6 {[%emt 0:00:00]} 4. Be3 a6 5. Qd2 {[%emt 0:00:01]} b5 {[%emt 0:00:00]} 6. O-O-O Bb7 7. f3 {[%emt 0:00:03]} Nd7 {[%emt 0:00:01]} 8. g4 {[%emt 0:00:02]} Ngf6 {[%emt 0:00:03]} 9. g5 {[%emt 0:00:07]} Nh5 {[%emt 0:00:01]} 10. Kb1 {[%emt 0:00:02]} Rc8 {[%emt 0:00:08]} 11. Nce2 {[%emt 0:00:35]} c5 {[%emt 0:00:03]} 12. Ng3 {[%emt 0:00:02]} Nxg3 {[%emt 0:00:13]} 13. hxg3 {[%emt 0:00:01]} Qc7 {[%emt 0:00:34]} 14. Rh2 {[%emt 0:00:09]} c4 {[%emt 0:00:15]} 15. c3 {[%emt 0:00:16]} a5 {[%emt 0:00:00]} 16. Bh3 {[%emt 0:00:03]} Rb8 {[%emt 0:00:03]} 17. Bxd7+ {[%emt 0:00:12]} Qxd7 {[%emt 0:00:02]} 18. Ne2 {[%emt 0:00:01]} b4 {[%emt 0:00:08]} 19. Rdh1 {[%emt 0:00:07]} d5 {[%emt 0:00:34]} 20. Rxh7 {[%emt 0:00:10]} Rxh7 {[%emt 0:00:08]} 21. Rxh7 {[%emt 0:00:02]} Bf8 {[%emt 0:00:11]} 22. Bf4 {[%emt 0:00:21]} dxe4 {[%emt 0:00:01]} 23. Bxb8 {[%emt 0:00:06]} exf3 {[%emt 0:00:03]} 24. Nf4 {[%emt 0:00:05]} Qf5+ {[%emt 0:00:20]} 25. Kc1 {[%emt 0:00:12]} Qe4 {[%emt 0:00:09]} 26. Nh3 {[%emt 0:00:17]} Bc8 {[%emt 0:00:23]} 27. Nf2 {[%emt 0:00:06]} Qb7 {[%emt 0:00:03]} 28. Be5 {[%emt 0:00:04]} b3 {[%emt 0:00:18]} 29. a3 {[%emt 0:00:04]} Bf5 {[%emt 0:00:05]} 30. g4 {[%emt 0:00:04]} Bxg4 {[%emt 0:00:02]} 31. Nxg4 {[%emt 0:00:02]} Qe4 {[%emt 0:00:01]} 32. Nf2 {[%emt 0:00:03]} Qf5 {[%emt 0:00:10]} 33. Rh8 {[%emt 0:00:17]} f6 {[%emt 0:00:02]} 34. gxf6 {[%emt 0:00:01]} exf6 {[%emt 0:00:01]} 35. Bd6 {[%emt 0:00:01]} Kd7 {[%emt 0:00:03]} 36. Bxf8 {[%emt 0:00:02]} g5 {[%emt 0:00:02]} 37. Rg8 {[%emt 0:00:16]} Qe6 {[%emt 0:00:04]} 38. Rg7+ {[%emt 0:00:01]} Kd8 {[%emt 0:00:02]} 39. d5 {[%emt 0:00:02]} Qf5 {[%emt 0:00:01]} 40. d6 {[%emt 0:00:02]} Qe6 {[%emt 0:00:02]} 41. d7 {[%emt 0:00:01]} Qe2 {[%emt 0:00:03]} 42. Be7+ 1-0